[Event "Early-Titled-Tuesday-Blitz-March-26-2024"]
[Site "Chess.com"]
[Date "2024.03.26"]
[Round "4"]
[White "dodorox"]
[Black "GMJustin"]
[Result "1-0"]
[WhiteElo "2119"]
[BlackElo "2340"]
[TimeControl "180+1"]
[EndTime "8:37:38 PDT"]
[Termination "dodorox won on time"]

1. d4 {[%clk 0:02:58.6]} 1... Nf6 {[%clk 0:02:24.1]} 2. c4 {[%clk 0:02:58]} 2...
e6 {[%clk 0:02:23.4]} 3. Nc3 {[%clk 0:02:58.3]} 3... Bb4 {[%clk 0:02:21.6]} 4.
Bd2 {[%clk 0:02:58.8]} 4... Nc6 {[%clk 0:02:06.5]} 5. e3 {[%clk 0:02:56.2]} 5...
d5 {[%clk 0:01:40.7]} 6. Nf3 {[%clk 0:02:53.2]} 6... O-O {[%clk 0:01:34.5]} 7.
Rc1 {[%clk 0:02:49.4]} 7... Bxc3 {[%clk 0:01:18.3]} 8. Bxc3 {[%clk 0:02:48.2]}
8... Ne4 {[%clk 0:01:18]} 9. Bd3 {[%clk 0:02:44.6]} 9... Nxc3 {[%clk 0:01:15.9]}
10. Rxc3 {[%clk 0:02:41.9]} 10... dxc4 {[%clk 0:01:11.1]} 11. Bxc4 {[%clk
0:02:39.6]} 11... Qd6 {[%clk 0:01:07.4]} 12. O-O {[%clk 0:02:33.5]} 12... Bd7
{[%clk 0:00:26.7]} 13. e4 {[%clk 0:02:15.3]} 13... Rad8 {[%clk 0:00:23.4]} 14.
Qd2 {[%clk 0:02:07.3]} 14... e5 {[%clk 0:00:17.7]} 15. d5 {[%clk 0:02:04.6]}
15... Ne7 {[%clk 0:00:16.7]} 16. Qg5 {[%clk 0:01:56.5]} 16... f6 {[%clk
0:00:13.8]} 17. Qe3 {[%clk 0:01:47.4]} 17... a6 {[%clk 0:00:10.3]} 18. Rfc1
{[%clk 0:01:46.2]} 18... Ng6 {[%clk 0:00:04.9]} 19. Bb3 {[%clk 0:01:32.9]} 19...
Rc8 {[%clk 0:00:04.3]} 20. g3 {[%clk 0:01:20.5]} 20... Kh8 {[%clk 0:00:03.6]}
21. Qc5 {[%clk 0:01:18.9]} 21... Qxc5 {[%clk 0:00:02]} 22. Rxc5 {[%clk
0:01:19.8]} 22... c6 {[%clk 0:00:01.9]} 23. Ba4 {[%clk 0:01:11.9]} 23... Rfd8
{[%clk 0:00:01.2]} 24. dxc6 {[%clk 0:01:08.2]} 24... Bxc6 {[%clk 0:00:01.5]} 25.
Bxc6 {[%clk 0:01:06]} 25... Rxc6 {[%clk 0:00:01.5]} 26. Rxc6 {[%clk 0:01:06.5]}
26... bxc6 {[%clk 0:00:01.7]} 27. Rxc6 {[%clk 0:01:06.8]} 27... a5 {[%clk
0:00:01.4]} 28. Ra6 {[%clk 0:01:02.4]} 28... h5 {[%clk 0:00:01.3]} 29. Rxa5
{[%clk 0:01:00.2]} 29... h4 {[%clk 0:00:01.4]} 30. Nxh4 {[%clk 0:00:56.8]} 30...
Nxh4 {[%clk 0:00:01.5]} 31. gxh4 {[%clk 0:00:56.7]} 31... Rd4 {[%clk 0:00:01.3]}
32. Rb5 {[%clk 0:00:32.4]} 32... Rxe4 {[%clk 0:00:01.2]} 33. b4 {[%clk
0:00:32.8]} 1-0

[Event "Early-Titled-Tuesday-Blitz-March-26-2024"]
[Site "Chess.com"]
[Date "2024.03.26"]
[Round "4"]
[White "MikeWizard"]
[Black "Viktor_Poddubnyi"]
[Result "0-1"]
[WhiteElo "2096"]
[BlackElo "2333"]
[TimeControl "180+1"]
[EndTime "8:37:38 PDT"]
[Termination "Viktor_Poddubnyi won by resignation"]

1. d4 {[%clk 0:03:00.9]} 1... g6 {[%clk 0:02:59.5]} 2. c4 {[%clk 0:02:53.6]}
2... Bg7 {[%clk 0:02:59.9]} 3. Nc3 {[%clk 0:02:53.6]} 3... c5 {[%clk 0:03:00.4]}
4. d5 {[%clk 0:02:52.3]} 4... f5 {[%clk 0:03:01]} 5. g3 {[%clk 0:02:46]} 5... d6
{[%clk 0:03:00.4]} 6. Bg2 {[%clk 0:02:46]} 6... Bxc3+ {[%clk 0:03:01]} 7. bxc3
{[%clk 0:02:45.4]} 7... Qa5 {[%clk 0:03:01.7]} 8. Qb3 {[%clk 0:02:44.3]} 8...
Nf6 {[%clk 0:03:02.3]} 9. Nh3 {[%clk 0:02:42.9]} 9... Nbd7 {[%clk 0:03:02.7]}
10. O-O {[%clk 0:02:37.2]} 10... Nb6 {[%clk 0:02:55.9]} 11. Bg5 {[%clk
0:02:25.9]} 11... Qa6 {[%clk 0:02:55.1]} 12. Bxf6 {[%clk 0:02:19.8]} 12... exf6
{[%clk 0:02:50.8]} 13. Rfe1 {[%clk 0:02:16.1]} 13... Qxc4 {[%clk 0:02:48]} 14.
e4 {[%clk 0:02:13]} 14... Kf7 {[%clk 0:02:27.8]} 15. exf5 {[%clk 0:02:07]} 15...
Bxf5 {[%clk 0:02:26.3]} 16. Nf4 {[%clk 0:02:04.5]} 16... Qxb3 {[%clk 0:01:38.9]}
17. axb3 {[%clk 0:02:03.5]} 17... a6 {[%clk 0:01:35]} 18. Re3 {[%clk 0:01:43.4]}
18... Rhe8 {[%clk 0:01:25.8]} 19. Rae1 {[%clk 0:01:41.7]} 19... Rxe3 {[%clk
0:01:21.7]} 20. Rxe3 {[%clk 0:01:40.8]} 20... Re8 {[%clk 0:01:13.1]} 21. Rxe8
{[%clk 0:01:39.8]} 21... Kxe8 {[%clk 0:01:12.9]} 22. Kf1 {[%clk 0:01:31.6]}
22... a5 {[%clk 0:00:48]} 23. Ke2 {[%clk 0:01:23.1]} 23... Bc2 {[%clk
0:00:43.7]} 24. Ne6 {[%clk 0:00:54.3]} 24... Bxb3 {[%clk 0:00:36.9]} 25. Nc7+
{[%clk 0:00:52.9]} 25... Kd7 {[%clk 0:00:31.9]} 26. Ne6 {[%clk 0:00:47.9]} 26...
Bxd5 {[%clk 0:00:25.9]} 27. Bxd5 {[%clk 0:00:44.9]} 27... Nxd5 {[%clk
0:00:25.3]} 28. Nf8+ {[%clk 0:00:44.9]} 28... Ke7 {[%clk 0:00:24.1]} 29. Nxh7
{[%clk 0:00:44.7]} 29... Kf7 {[%clk 0:00:20.5]} 30. Kd3 {[%clk 0:00:35.8]} 30...
Kg7 {[%clk 0:00:20.9]} 31. Kc4 {[%clk 0:00:34.9]} 31... Nc7 {[%clk 0:00:21.5]}
32. Ng5 {[%clk 0:00:33.2]} 32... fxg5 {[%clk 0:00:22.4]} 33. f4 {[%clk
0:00:32.4]} 33... b5+ {[%clk 0:00:22.6]} 34. Kb3 {[%clk 0:00:31.1]} 34... gxf4
{[%clk 0:00:23.1]} 35. gxf4 {[%clk 0:00:30.4]} 35... Kf6 {[%clk 0:00:23.8]} 36.
h4 {[%clk 0:00:29.4]} 36... Kf5 {[%clk 0:00:24.2]} 37. h5 {[%clk 0:00:29.7]}
37... gxh5 {[%clk 0:00:24.2]} 0-1

[Event "Early-Titled-Tuesday-Blitz-March-26-2024"]
[Site "Chess.com"]
[Date "2024.03.26"]
[Round "4"]
[White "Mops_2004"]
[Black "jefferyx"]
[Result "0-1"]
[WhiteElo "2818"]
[BlackElo "3102"]
[TimeControl "180+1"]
[EndTime "8:37:39 PDT"]
[Termination "jefferyx won by resignation"]

1. Nf3 {[%clk 0:03:00.9]} 1... c5 {[%clk 0:02:59.6]} 2. g3 {[%clk 0:03:00.2]}
2... Nc6 {[%clk 0:02:58.6]} 3. Bg2 {[%clk 0:03:00.7]} 3... g6 {[%clk 0:02:58.9]}
4. c4 {[%clk 0:02:59.7]} 4... Bg7 {[%clk 0:02:59.1]} 5. Nc3 {[%clk 0:03:00.4]}
5... d6 {[%clk 0:02:59.3]} 6. a3 {[%clk 0:02:56.3]} 6... Qd7 {[%clk 0:02:51.1]}
7. Rb1 {[%clk 0:02:46.9]} 7... b6 {[%clk 0:02:51.2]} 8. h4 {[%clk 0:02:33.1]}
8... Bb7 {[%clk 0:02:50.1]} 9. O-O {[%clk 0:02:26.9]} 9... Bxc3 {[%clk
0:02:45.9]} 10. bxc3 {[%clk 0:02:20.6]} 10... f5 {[%clk 0:02:46.8]} 11. d4
{[%clk 0:01:49.5]} 11... Nf6 {[%clk 0:02:46.9]} 12. d5 {[%clk 0:01:50.1]} 12...
Na5 {[%clk 0:02:46.7]} 13. Ng5 {[%clk 0:01:50.8]} 13... Ba6 {[%clk 0:02:21.5]}
14. Re1 {[%clk 0:01:28.4]} 14... Bxc4 {[%clk 0:01:56.5]} 15. Ne6 {[%clk
0:01:18.8]} 15... Nb7 {[%clk 0:01:50.8]} 16. Ng7+ {[%clk 0:01:07]} 16... Kf7
{[%clk 0:01:49.6]} 17. Ne6 {[%clk 0:01:07.4]} 17... Nd8 {[%clk 0:01:49.9]} 18.
Ng5+ {[%clk 0:01:03.5]} 18... Kg8 {[%clk 0:01:32]} 19. e4 {[%clk 0:00:59.8]}
19... h6 {[%clk 0:01:26.7]} 20. e5 {[%clk 0:00:56.2]} 20... dxe5 {[%clk
0:01:19.1]} 21. Nf3 {[%clk 0:00:56.2]} 21... e4 {[%clk 0:01:16.8]} 22. Ne5
{[%clk 0:00:51.7]} 22... Qxd5 {[%clk 0:01:16.9]} 23. Nxc4 {[%clk 0:00:52]} 23...
Qxc4 {[%clk 0:01:16.8]} 24. a4 {[%clk 0:00:34.6]} 24... Nf7 {[%clk 0:01:13.6]}
25. a5 {[%clk 0:00:33.3]} 25... Rd8 {[%clk 0:01:01.2]} 26. Qc2 {[%clk
0:00:32.9]} 26... Qe6 {[%clk 0:00:46.8]} 27. axb6 {[%clk 0:00:32.3]} 27... axb6
{[%clk 0:00:47.7]} 28. Bf4 {[%clk 0:00:31.9]} 28... g5 {[%clk 0:00:47.4]} 29.
Bc7 {[%clk 0:00:31.7]} 29... Rc8 {[%clk 0:00:43.2]} 30. Bxb6 {[%clk 0:00:24.4]}
30... gxh4 {[%clk 0:00:42.4]} 31. gxh4 {[%clk 0:00:19.4]} 31... Ne5 {[%clk
0:00:42.7]} 32. Qd2 {[%clk 0:00:14.2]} 32... Nc4 {[%clk 0:00:39.5]} 33. Qa2
{[%clk 0:00:12.1]} 33... Kf7 {[%clk 0:00:40.1]} 34. Qa7 {[%clk 0:00:05.2]} 34...
Rhg8 {[%clk 0:00:38.2]} 35. Kf1 {[%clk 0:00:02]} 35... Nd2+ {[%clk 0:00:38]} 36.
Ke2 {[%clk 0:00:02.5]} 36... Nxb1 {[%clk 0:00:38.1]} 0-1

[Event "Early-Titled-Tuesday-Blitz-March-26-2024"]
[Site "Chess.com"]
[Date "2024.03.26"]
[Round "4"]
[White "frederiksvane"]
[Black "js20000"]
[Result "1/2-1/2"]
[WhiteElo "2981"]
[BlackElo "2805"]
[TimeControl "180+1"]
[EndTime "8:37:42 PDT"]
[Termination "Game drawn by agreement"]

1. e4 {[%clk 0:03:00.9]} 1... c6 {[%clk 0:02:58.8]} 2. d4 {[%clk 0:03:00.8]}
2... d5 {[%clk 0:02:58.5]} 3. exd5 {[%clk 0:03:01.7]} 3... cxd5 {[%clk
0:02:58.6]} 4. Nf3 {[%clk 0:03:02.6]} 4... Nc6 {[%clk 0:02:57.4]} 5. c3 {[%clk
0:03:03.2]} 5... Bg4 {[%clk 0:02:56.2]} 6. h3 {[%clk 0:03:03.8]} 6... Bh5 {[%clk
0:02:55.5]} 7. Qb3 {[%clk 0:03:04]} 7... Qd7 {[%clk 0:02:50.8]} 8. Ne5 {[%clk
0:03:03.9]} 8... Nxe5 {[%clk 0:02:48.9]} 9. dxe5 {[%clk 0:03:04.8]} 9... a6
{[%clk 0:02:49]} 10. c4 {[%clk 0:03:05.4]} 10... dxc4 {[%clk 0:02:45.4]} 11.
Bxc4 {[%clk 0:03:06.3]} 11... e6 {[%clk 0:02:45.7]} 12. O-O {[%clk 0:03:05.1]}
12... Bc5 {[%clk 0:02:36.6]} 13. Nc3 {[%clk 0:02:45.4]} 13... Ne7 {[%clk
0:02:11.5]} 14. Ne4 {[%clk 0:02:45.2]} 14... Rc8 {[%clk 0:02:11.1]} 15. g4
{[%clk 0:02:41.3]} 15... Bg6 {[%clk 0:02:10.7]} 16. Nxc5 {[%clk 0:02:41.7]}
16... Rxc5 {[%clk 0:02:09.1]} 17. Be3 {[%clk 0:02:25.3]} 17... Rxc4 {[%clk
0:02:06.5]} 18. Qxc4 {[%clk 0:01:52.6]} 18... Bd3 {[%clk 0:02:05.1]} 19. Qb3
{[%clk 0:01:53.1]} 19... Bxf1 {[%clk 0:02:04.5]} 20. Kxf1 {[%clk 0:01:53.5]}
20... O-O {[%clk 0:01:06.9]} 21. Bc5 {[%clk 0:01:53.1]} 21... Rc8 {[%clk
0:01:02.1]} 22. Bxe7 {[%clk 0:01:53.4]} 22... Qxe7 {[%clk 0:01:03]} 23. Rd1
{[%clk 0:01:53.2]} 23... h6 {[%clk 0:01:00]} 24. Qb6 {[%clk 0:01:40.6]} 24...
Kh7 {[%clk 0:00:43.2]} 25. Qd6 {[%clk 0:01:33.5]} 25... Qxd6 {[%clk 0:00:14.1]}
26. Rxd6 {[%clk 0:01:34.4]} 26... Rc7 {[%clk 0:00:14.6]} 27. Kg2 {[%clk
0:01:26.5]} 27... g5 {[%clk 0:00:12.3]} 28. a4 {[%clk 0:01:22.1]} 28... Rc4
{[%clk 0:00:06.5]} 29. Rd7 {[%clk 0:00:48.9]} 29... Kg6 {[%clk 0:00:05.6]} 30.
Rxb7 {[%clk 0:00:48.8]} 30... Rxa4 {[%clk 0:00:05.8]} 31. Kg3 {[%clk 0:00:43.2]}
31... Re4 {[%clk 0:00:04.3]} 32. Ra7 {[%clk 0:00:37.9]} 32... Rb4 {[%clk
0:00:03.7]} 33. Rxa6 {[%clk 0:00:37.8]} 33... Rxb2 {[%clk 0:00:03.5]} 1/2-1/2

[Event "Early-Titled-Tuesday-Blitz-March-26-2024"]
[Site "Chess.com"]
[Date "2024.03.26"]
[Round "4"]
[White "Rsnr"]
[Black "Sammed_Shete"]
[Result "1-0"]
[WhiteElo "2915"]
[BlackElo "2742"]
[TimeControl "180+1"]
[EndTime "8:37:43 PDT"]
[Termination "Rsnr won by checkmate"]

1. d4 {[%clk 0:02:57.2]} 1... Nf6 {[%clk 0:02:59.6]} 2. c4 {[%clk 0:02:57.8]}
2... e6 {[%clk 0:03:00]} 3. Nf3 {[%clk 0:02:57.6]} 3... d5 {[%clk 0:03:00]} 4.
e3 {[%clk 0:02:51.5]} 4... Be7 {[%clk 0:02:52]} 5. b3 {[%clk 0:02:50.6]} 5...
O-O {[%clk 0:02:50]} 6. Bd3 {[%clk 0:02:51.2]} 6... dxc4 {[%clk 0:02:46.9]} 7.
bxc4 {[%clk 0:02:52.1]} 7... c5 {[%clk 0:02:47.8]} 8. O-O {[%clk 0:02:52.1]}
8... b6 {[%clk 0:02:48.3]} 9. Bb2 {[%clk 0:02:49.6]} 9... Bb7 {[%clk 0:02:47.7]}
10. Nbd2 {[%clk 0:02:48.3]} 10... Nc6 {[%clk 0:02:42.4]} 11. Qe2 {[%clk
0:02:45.6]} 11... Rc8 {[%clk 0:02:40.1]} 12. Rac1 {[%clk 0:02:45.4]} 12... Re8
{[%clk 0:02:26.5]} 13. Rfd1 {[%clk 0:02:45.5]} 13... Bd6 {[%clk 0:02:17.3]} 14.
Ne4 {[%clk 0:02:24.8]} 14... Nxe4 {[%clk 0:02:00.6]} 15. Bxe4 {[%clk 0:02:25.7]}
15... Qe7 {[%clk 0:02:01.2]} 16. h3 {[%clk 0:01:57.8]} 16... Na5 {[%clk
0:01:47.3]} 17. Bd3 {[%clk 0:01:53.6]} 17... cxd4 {[%clk 0:01:43.1]} 18. exd4
{[%clk 0:01:51.2]} 18... Bf4 {[%clk 0:01:42.7]} 19. Rc2 {[%clk 0:01:50.8]} 19...
f5 {[%clk 0:01:17.6]} 20. Re1 {[%clk 0:01:15.8]} 20... Bd6 {[%clk 0:00:52.5]}
21. Bc3 {[%clk 0:01:00.9]} 21... Bb4 {[%clk 0:00:48.8]} 22. Bxb4 {[%clk
0:00:54.1]} 22... Qxb4 {[%clk 0:00:49.7]} 23. Ng5 {[%clk 0:00:54.7]} 23... Re7
{[%clk 0:00:24]} 24. Bxf5 {[%clk 0:00:46.2]} 24... Rf8 {[%clk 0:00:20.2]} 25.
Bxh7+ {[%clk 0:00:36.8]} 25... Kh8 {[%clk 0:00:20.6]} 26. Be4 {[%clk 0:00:33.2]}
26... Bxe4 {[%clk 0:00:17.5]} 27. Qh5+ {[%clk 0:00:32.8]} 27... Kg8 {[%clk
0:00:16.8]} 28. Rxe4 {[%clk 0:00:31.9]} 28... Qb1+ {[%clk 0:00:16.8]} 29. Kh2
{[%clk 0:00:32]} 29... g6 {[%clk 0:00:15.9]} 30. Qxg6+ {[%clk 0:00:31.4]} 30...
Rg7 {[%clk 0:00:16.8]} 31. Qxe6+ {[%clk 0:00:31.5]} 31... Rff7 {[%clk
0:00:17.7]} 32. Nxf7 {[%clk 0:00:27.2]} 32... Qxc2 {[%clk 0:00:18.2]} 33. Ng5+
{[%clk 0:00:24.1]} 33... Kh8 {[%clk 0:00:18.1]} 34. Qh6+ {[%clk 0:00:23.3]}
34... Kg8 {[%clk 0:00:18]} 35. Re8# {[%clk 0:00:23.4]} 1-0

[Event "Early-Titled-Tuesday-Blitz-March-26-2024"]
[Site "Chess.com"]
[Date "2024.03.26"]
[Round "4"]
[White "jinbojinbo"]
[Black "JimDiGrease"]
[Result "0-1"]
[WhiteElo "2645"]
[BlackElo "2957"]
[TimeControl "180+1"]
[EndTime "8:37:43 PDT"]
[Termination "JimDiGrease won by checkmate"]

1. e4 {[%clk 0:03:00.9]} 1... c5 {[%clk 0:03:00.4]} 2. Nf3 {[%clk 0:03:00.8]}
2... d6 {[%clk 0:03:00.1]} 3. c3 {[%clk 0:02:57.3]} 3... Nf6 {[%clk 0:02:59.6]}
4. h3 {[%clk 0:02:57.4]} 4... g6 {[%clk 0:02:59.5]} 5. Bd3 {[%clk 0:02:57.7]}
5... Bg7 {[%clk 0:02:59.8]} 6. Bc2 {[%clk 0:02:56.6]} 6... e5 {[%clk 0:03:00.4]}
7. O-O {[%clk 0:02:56.6]} 7... O-O {[%clk 0:03:00.8]} 8. d4 {[%clk 0:02:56.8]}
8... exd4 {[%clk 0:03:01.7]} 9. cxd4 {[%clk 0:02:56.8]} 9... cxd4 {[%clk
0:03:02.6]} 10. Nxd4 {[%clk 0:02:56.9]} 10... d5 {[%clk 0:03:02.7]} 11. e5
{[%clk 0:02:34.9]} 11... Ne4 {[%clk 0:03:02.4]} 12. f4 {[%clk 0:02:34.8]} 12...
f6 {[%clk 0:03:01.8]} 13. exf6 {[%clk 0:02:28.3]} 13... Qxf6 {[%clk 0:03:02.7]}
14. Be3 {[%clk 0:02:27.7]} 14... Ng3 {[%clk 0:03:00.5]} 15. Rf3 {[%clk
0:02:18.7]} 15... Nc6 {[%clk 0:03:00.8]} 16. Nxc6 {[%clk 0:01:54]} 16... bxc6
{[%clk 0:03:00.9]} 17. Nc3 {[%clk 0:01:53.8]} 17... Nf5 {[%clk 0:02:40.9]} 18.
Bc5 {[%clk 0:01:52.9]} 18... Re8 {[%clk 0:02:33.4]} 19. Qd2 {[%clk 0:01:49.7]}
19... Nd4 {[%clk 0:02:10.2]} 20. Rff1 {[%clk 0:01:43.9]} 20... Rb8 {[%clk
0:02:03.7]} 21. Bd3 {[%clk 0:01:37.1]} 21... Bf5 {[%clk 0:01:48.8]} 22. Bxf5
{[%clk 0:01:24.3]} 22... Nxf5 {[%clk 0:01:49.7]} 23. Rae1 {[%clk 0:01:14.6]}
23... a5 {[%clk 0:01:07]} 24. Rxe8+ {[%clk 0:01:09.1]} 24... Rxe8 {[%clk
0:01:07.9]} 25. Re1 {[%clk 0:01:09.2]} 25... Rxe1+ {[%clk 0:00:52.4]} 26. Qxe1
{[%clk 0:01:10.1]} 26... Nd6 {[%clk 0:00:52.2]} 27. Qe2 {[%clk 0:00:42.5]} 27...
h5 {[%clk 0:00:48.9]} 28. Qa6 {[%clk 0:00:38.4]} 28... Qxf4 {[%clk 0:00:29.9]}
29. Qxc6 {[%clk 0:00:37]} 29... Qc1+ {[%clk 0:00:30.2]} 30. Kf2 {[%clk
0:00:21.2]} 30... Qxb2+ {[%clk 0:00:27.2]} 31. Kf1 {[%clk 0:00:21.1]} 31... Qc1+
{[%clk 0:00:20.4]} 32. Kf2 {[%clk 0:00:18.5]} 32... Qd2+ {[%clk 0:00:19.2]} 33.
Kf1 {[%clk 0:00:18.3]} 33... Bxc3 {[%clk 0:00:15.5]} 34. Qxd6 {[%clk 0:00:17.5]}
34... Qe1# {[%clk 0:00:15.4]} 0-1

[Event "Early-Titled-Tuesday-Blitz-March-26-2024"]
[Site "Chess.com"]
[Date "2024.03.26"]
[Round "4"]
[White "Goryachkina"]
[Black "Levanzovsky"]
[Result "0-1"]
[WhiteElo "2671"]
[BlackElo "2418"]
[TimeControl "180+1"]
[EndTime "8:37:46 PDT"]
[Termination "Levanzovsky won by resignation"]

1. e4 {[%clk 0:02:59.9]} 1... c5 {[%clk 0:02:58.5]} 2. Nf3 {[%clk 0:02:59.8]}
2... g6 {[%clk 0:02:56]} 3. d4 {[%clk 0:02:51.6]} 3... cxd4 {[%clk 0:02:55.7]}
4. Qxd4 {[%clk 0:02:51.6]} 4... Nf6 {[%clk 0:02:55.5]} 5. Nc3 {[%clk 0:02:48.7]}
5... Nc6 {[%clk 0:02:55.5]} 6. Qa4 {[%clk 0:02:47.4]} 6... d6 {[%clk 0:02:55.6]}
7. e5 {[%clk 0:02:46.4]} 7... dxe5 {[%clk 0:02:56.1]} 8. Nxe5 {[%clk 0:02:46.4]}
8... Bd7 {[%clk 0:02:56.3]} 9. Nxd7 {[%clk 0:02:45.8]} 9... Nxd7 {[%clk
0:02:57.2]} 10. Be3 {[%clk 0:02:34.8]} 10... Bg7 {[%clk 0:02:45.4]} 11. Be2
{[%clk 0:02:24.6]} 11... O-O {[%clk 0:02:44.1]} 12. O-O {[%clk 0:02:23.6]} 12...
Nb6 {[%clk 0:02:43.9]} 13. Qh4 {[%clk 0:02:18.2]} 13... Nd4 {[%clk 0:02:41.1]}
14. Bd3 {[%clk 0:02:12.5]} 14... e6 {[%clk 0:02:27.7]} 15. Bg5 {[%clk
0:01:58.5]} 15... Qc7 {[%clk 0:01:48]} 16. Rad1 {[%clk 0:01:53.5]} 16... Nf5
{[%clk 0:01:20.7]} 17. Qh3 {[%clk 0:01:38.2]} 17... h6 {[%clk 0:01:04.1]} 18.
Bc1 {[%clk 0:01:36.1]} 18... h5 {[%clk 0:00:56.3]} 19. Ne4 {[%clk 0:01:29.7]}
19... Nd5 {[%clk 0:00:44.2]} 20. Qf3 {[%clk 0:01:12.8]} 20... Nd4 {[%clk
0:00:39.6]} 21. Qg3 {[%clk 0:01:06.8]} 21... Be5 {[%clk 0:00:29.7]} 22. f4
{[%clk 0:01:01.3]} 22... Nf5 {[%clk 0:00:29.5]} 23. Qh3 {[%clk 0:00:47.8]} 23...
Bd4+ {[%clk 0:00:28.3]} 24. Kh1 {[%clk 0:00:43.7]} 24... Nde3 {[%clk 0:00:28.4]}
25. Nf6+ {[%clk 0:00:26.8]} 25... Bxf6 {[%clk 0:00:25.1]} 26. Bxe3 {[%clk
0:00:26.2]} 26... Nxe3 {[%clk 0:00:25.4]} 27. Qxe3 {[%clk 0:00:26.4]} 27... Bxb2
{[%clk 0:00:25.4]} 28. Rb1 {[%clk 0:00:24.1]} 28... Bg7 {[%clk 0:00:24.2]} 29.
Be4 {[%clk 0:00:24.3]} 29... Qc4 {[%clk 0:00:09.3]} 30. Rxb7 {[%clk 0:00:18.5]}
30... Qxf1+ {[%clk 0:00:08.7]} 0-1

[Event "Early-Titled-Tuesday-Blitz-March-26-2024"]
[Site "Chess.com"]
[Date "2024.03.26"]
[Round "4"]
[White "Cheer_Down"]
[Black "BeautiFullMindChess"]
[Result "1-0"]
[WhiteElo "2481"]
[BlackElo "2300"]
[TimeControl "180+1"]
[EndTime "8:37:46 PDT"]
[Termination "Cheer_Down won on time"]

1. e4 {[%clk 0:03:00.9]} 1... c6 {[%clk 0:02:56.6]} 2. d4 {[%clk 0:03:00.1]}
2... d5 {[%clk 0:02:57]} 3. e5 {[%clk 0:03:00.1]} 3... c5 {[%clk 0:02:57.2]} 4.
dxc5 {[%clk 0:02:58.5]} 4... e6 {[%clk 0:02:57.8]} 5. a3 {[%clk 0:02:38.4]} 5...
Bxc5 {[%clk 0:02:56.7]} 6. Nf3 {[%clk 0:02:35]} 6... Ne7 {[%clk 0:02:52.9]} 7.
Bd3 {[%clk 0:02:33.4]} 7... Nbc6 {[%clk 0:02:52.5]} 8. b4 {[%clk 0:02:29.8]}
8... Bb6 {[%clk 0:02:52.5]} 9. O-O {[%clk 0:02:29.9]} 9... Ng6 {[%clk
0:02:52.8]} 10. Bb2 {[%clk 0:02:28.8]} 10... Nf4 {[%clk 0:02:49.8]} 11. c4
{[%clk 0:02:17]} 11... Nxd3 {[%clk 0:02:44]} 12. Qxd3 {[%clk 0:02:16.2]} 12...
dxc4 {[%clk 0:02:37.1]} 13. Qxc4 {[%clk 0:02:16.4]} 13... O-O {[%clk 0:02:32.2]}
14. Nc3 {[%clk 0:02:15.9]} 14... Nd4 {[%clk 0:02:21.2]} 15. Nxd4 {[%clk
0:02:11.1]} 15... Qxd4 {[%clk 0:02:22.1]} 16. Qe2 {[%clk 0:02:10.4]} 16... Qf4
{[%clk 0:02:01.1]} 17. Rad1 {[%clk 0:02:06.6]} 17... a5 {[%clk 0:01:26.7]} 18.
Qb5 {[%clk 0:02:04.2]} 18... Bc7 {[%clk 0:01:06.6]} 19. Rfe1 {[%clk 0:02:04.4]}
19... axb4 {[%clk 0:01:04.8]} 20. axb4 {[%clk 0:02:01.6]} 20... Ra6 {[%clk
0:00:48.9]} 21. Ne4 {[%clk 0:01:41.4]} 21... Ra2 {[%clk 0:00:39.4]} 22. Bd4
{[%clk 0:01:40.7]} 22... h6 {[%clk 0:00:29.1]} 23. Qc5 {[%clk 0:01:28.9]} 23...
Bb8 {[%clk 0:00:22.4]} 24. Nd6 {[%clk 0:01:25.7]} 24... Bd7 {[%clk 0:00:09.5]}
25. Be3 {[%clk 0:01:20.2]} 25... Qg4 {[%clk 0:00:06.5]} 26. Nxb7 {[%clk
0:01:10.1]} 26... Ba7 {[%clk 0:00:05.4]} 27. Rd4 {[%clk 0:00:54.5]} 27... Bxc5
{[%clk 0:00:03.5]} 28. Rxg4 {[%clk 0:00:54.7]} 28... Bxe3 {[%clk 0:00:04.1]} 29.
fxe3 {[%clk 0:00:54.6]} 29... Bc6 {[%clk 0:00:04.2]} 30. Nd6 {[%clk 0:00:52.9]}
30... Bd5 {[%clk 0:00:04.2]} 31. Rf1 {[%clk 0:00:45.8]} 31... f6 {[%clk
0:00:03.7]} 32. exf6 {[%clk 0:00:43.5]} 32... g5 {[%clk 0:00:03.7]} 33. h4
{[%clk 0:00:42.8]} 33... Rd8 {[%clk 0:00:02.2]} 34. hxg5 {[%clk 0:00:33.3]}
34... Rxd6 {[%clk 0:00:01.7]} 35. gxh6+ {[%clk 0:00:31.1]} 35... Kf8 {[%clk
0:00:01.9]} 36. h7 {[%clk 0:00:30.8]} 1-0

[Event "Early-Titled-Tuesday-Blitz-March-26-2024"]
[Site "Chess.com"]
[Date "2024.03.26"]
[Round "4"]
[White "Abund"]
[Black "Ginger_GM"]
[Result "1-0"]
[WhiteElo "2813"]
[BlackElo "2576"]
[TimeControl "180+1"]
[EndTime "8:37:47 PDT"]
[Termination "Abund won by resignation"]

1. e4 {[%clk 0:03:00.9]} 1... g6 {[%clk 0:02:54.3]} 2. d4 {[%clk 0:03:01]} 2...
Bg7 {[%clk 0:02:54.2]} 3. Nc3 {[%clk 0:03:01.8]} 3... d6 {[%clk 0:02:54.4]} 4.
f4 {[%clk 0:03:02.2]} 4... c6 {[%clk 0:02:51.5]} 5. Nf3 {[%clk 0:02:52.8]} 5...
d5 {[%clk 0:02:51.6]} 6. e5 {[%clk 0:02:50.5]} 6... Bg4 {[%clk 0:02:51.3]} 7.
Be3 {[%clk 0:02:42]} 7... e6 {[%clk 0:02:48.3]} 8. h3 {[%clk 0:02:37.6]} 8...
Bxf3 {[%clk 0:02:47.4]} 9. Qxf3 {[%clk 0:02:38.5]} 9... h5 {[%clk 0:02:45.3]}
10. g3 {[%clk 0:02:27.2]} 10... Ne7 {[%clk 0:02:44.6]} 11. Bd3 {[%clk
0:02:23.1]} 11... Nd7 {[%clk 0:02:43.5]} 12. O-O-O {[%clk 0:02:21.5]} 12... Qa5
{[%clk 0:01:59.5]} 13. g4 {[%clk 0:02:19.6]} 13... O-O-O {[%clk 0:01:58.3]} 14.
f5 {[%clk 0:02:05.8]} 14... gxf5 {[%clk 0:01:54.9]} 15. gxf5 {[%clk 0:00:57]}
15... Bh6 {[%clk 0:01:52.5]} 16. Bxh6 {[%clk 0:00:48.7]} 16... Rxh6 {[%clk
0:01:52]} 17. Rhg1 {[%clk 0:00:46.9]} 17... c5 {[%clk 0:01:40.8]} 18. Rg7 {[%clk
0:00:33.8]} 18... Nc6 {[%clk 0:01:33]} 19. Qf4 {[%clk 0:00:25.5]} 19... Rhh8
{[%clk 0:01:27.4]} 20. Rxf7 {[%clk 0:00:25.8]} 20... Nxd4 {[%clk 0:01:18.6]} 21.
Kb1 {[%clk 0:00:23.9]} 21... Kb8 {[%clk 0:01:03.4]} 22. fxe6 {[%clk 0:00:19.9]}
22... Nxe6 {[%clk 0:01:03.4]} 23. Qf5 {[%clk 0:00:19.9]} 23... Ndf8 {[%clk
0:01:00]} 24. Qf6 {[%clk 0:00:17.4]} 24... Rg8 {[%clk 0:00:52.8]} 25. Bf5 {[%clk
0:00:17.5]} 25... d4 {[%clk 0:00:47]} 26. Ne4 {[%clk 0:00:15.6]} 26... Re8
{[%clk 0:00:34.1]} 27. Nd6 {[%clk 0:00:15.2]} 27... Qd2 {[%clk 0:00:34.3]} 28.
Rc1 {[%clk 0:00:14.9]} 28... Nd8 {[%clk 0:00:26.7]} 29. Nxe8 {[%clk 0:00:12.6]}
29... Nxf7 {[%clk 0:00:20.5]} 30. Qxf7 {[%clk 0:00:13.5]} 1-0